[Event "13 ème Rapide Isle 2019"]
[Site "Isle, France"]
[Date "2019.09.22"]
[Round "1.1"]
[White "Augonnet, Herve"]
[Black "Chamaillard, Sylvain"]
[Result "0-1"]
[TimeControl "15'+5''"]
[WhiteElo "1614"]
[BlackElo "2033"]

1. e4 {[%clk 00:15:08]} {[%emt 00:00:01]} c5 {[%clk 00:15:09]} {[%emt
00:00:02]} 2. Nf3 {[%clk 00:15:10]} {[%emt 00:00:02]} Nf6 {[%clk 00:15:12]}
{[%emt 00:00:03]} 3. Nc3 {[%clk 00:15:12]} {[%emt 00:00:03]} d5 {[%clk
00:15:15]} {[%emt 00:00:02]} 4. exd5 {[%clk 00:15:04]} {[%emt 00:00:13]} Nxd5
{[%clk 00:15:18]} {[%emt 00:00:02]} 5. Be2 {[%clk 00:14:28]} {[%emt 00:00:41]}
Nc6 {[%clk 00:15:17]} {[%emt 00:00:06]} 6. O-O {[%clk 00:14:21]} {[%emt
00:00:40]} Nxc3 {[%clk 00:15:08]} 7. bxc3 {[%clk 00:14:23]} e6 {[%clk
00:15:11]} 8. d4 {[%clk 00:14:05]} {[%emt 00:00:14]} Be7 {[%clk 00:15:14]}
{[%emt 00:00:03]} 9. Be3 {[%clk 00:13:38]} {[%emt 00:00:31]} O-O {[%clk
00:15:01]} {[%emt 00:00:19]} 10. Rb1 {[%clk 00:13:17]} {[%emt 00:12:28]} b6
{[%clk 00:14:59]} 11. Bb5 {[%clk 00:13:00]} Bb7 {[%clk 00:14:10]} 12. Qe2
{[%clk 00:13:00]} cxd4 {[%clk 00:14:05]} 13. cxd4 {[%clk 00:12:45]} a6 {[%clk
00:13:43]} 14. Bd3 {[%clk 00:12:06]} Bf6 {[%clk 00:12:28]} 15. Rfd1 {[%clk
00:11:42]} Ne7 {[%clk 00:12:02]} 16. c3 {[%clk 00:10:30]} Qc7 {[%clk 00:11:15]}
17. Rdc1 {[%clk 00:09:20]} b5 {[%clk 00:10:44]} 18. h3 {[%clk 00:08:48]} Nd5
{[%clk 00:10:22]} 19. Bd2 {[%clk 00:08:36]} Rac8 {[%clk 00:09:56]} 20. c4
{[%clk 00:07:56]} {[%emt 00:00:04]} Nf4 {[%clk 00:09:47]} {[%emt 00:00:14]} 21.
Bxf4 {[%clk 00:07:41]} {[%emt 00:00:20]} Qxf4 {[%clk 00:09:49]} {[%emt
00:00:03]} 22. Qe3 {[%clk 00:05:29]} {[%emt 00:02:17]} Qxe3 {[%clk 00:08:45]}
{[%emt 00:01:09]} 23. fxe3 {[%clk 00:05:29]} {[%emt 00:00:05]} bxc4 {[%clk
00:07:47]} {[%emt 00:01:03]} 24. Bxc4 {[%clk 00:05:15]} {[%emt 00:00:19]} Be4
{[%clk 00:07:38]} {[%emt 00:00:14]} 25. Rb6 {[%clk 00:04:23]} {[%emt 00:00:58]}
Bd3 {[%clk 00:05:16]} {[%emt 00:02:27]} 26. Rb4 {[%clk 00:03:31]} {[%emt
00:00:57]} Be7 {[%clk 00:05:08]} {[%emt 00:00:13]} 27. Ra4 {[%clk 00:03:34]}
{[%emt 00:00:03]} a5 {[%clk 00:03:47]} {[%emt 00:01:26]} 28. Ne5 {[%clk
00:03:23]} {[%emt 00:00:15]} Be4 {[%clk 00:03:36]} {[%emt 00:00:15]} 29. Re1
{[%clk 00:02:51]} {[%emt 00:00:37]} Bb4 {[%clk 00:03:26]} {[%emt 00:00:15]} 30.
a3 {[%clk 00:02:16]} {[%emt 00:00:40]} Bxe1 {[%clk 00:03:25]} {[%emt 00:00:06]}
0-1

[Event "13 ème Rapide Isle 2019"]
[Site "Isle, France"]
[Date "2019.09.22"]
[Round "1.2"]
[White "Bedouin, Xavier"]
[Black "Randisi, Stephane"]
[Result "1-0"]
[TimeControl "15'+5''"]
[WhiteElo "2295"]
[BlackElo "1556"]

1. c4 {[%clk 00:15:07]} {[%emt 00:00:03]} c5 {[%clk 00:15:07]} {[%emt
00:00:04]} 2. g3 {[%clk 00:15:08]} {[%emt 00:00:04]} Nc6 {[%clk 00:15:10]}
{[%emt 00:00:02]} 3. Bg2 {[%clk 00:15:11]} {[%emt 00:00:02]} Nf6 {[%clk
00:15:06]} {[%emt 00:00:09]} 4. Nc3 {[%clk 00:15:12]} {[%emt 00:00:03]} g6
{[%clk 00:15:00]} {[%emt 00:00:11]} 5. Nf3 {[%clk 00:15:13]} {[%emt 00:00:04]}
Bg7 {[%clk 00:15:04]} {[%emt 00:00:01]} 6. d4 {[%clk 00:15:12]} {[%emt
00:00:06]} cxd4 {[%clk 00:14:53]} {[%emt 00:00:16]} 7. Nxd4 {[%clk 00:15:14]}
{[%emt 00:00:02]} O-O {[%clk 00:14:56]} {[%emt 00:00:03]} 8. O-O {[%clk
00:15:16]} {[%emt 00:00:03]} Nxd4 {[%clk 00:14:38]} {[%emt 00:00:40]} 9. Qxd4
{[%clk 00:15:17]} d6 {[%clk 00:14:15]} {[%emt 00:00:15]} 10. Qd3 {[%clk
00:15:18]} {[%emt 00:00:03]} Rb8 {[%clk 00:14:14]} {[%emt 00:00:06]} 11. b3
{[%clk 00:14:34]} {[%emt 00:00:49]} Qc7 {[%clk 00:14:05]} {[%emt 00:03:31]} 12.
Bb2 {[%clk 00:14:16]} Rd8 {[%clk 00:13:48]} 13. Rac1 {[%clk 00:14:05]} e6
{[%clk 00:13:32]} 14. Rfd1 {[%clk 00:14:04]} Ne8 {[%clk 00:13:21]} 15. Nb5
{[%clk 00:13:20]} Qa5 {[%clk 00:13:13]} 16. Bxg7 {[%clk 00:13:21]} Kxg7 {[%clk
00:12:59]} 17. Qd4+ {[%clk 00:13:05]} {[%emt 00:00:12]} Kg8 {[%clk 00:12:50]}
{[%emt 00:00:14]} 18. Qxa7 {[%clk 00:13:05]} {[%emt 00:00:05]} Ra8 {[%clk
00:12:45]} {[%emt 00:00:10]} 19. Qxa5 {[%clk 00:13:02]} {[%emt 00:00:08]} Rxa5
{[%clk 00:12:49]} 20. a4 {[%clk 00:12:59]} {[%emt 00:00:08]} Ra6 {[%clk
00:12:13]} {[%emt 00:00:41]} 21. Rd2 {[%clk 00:12:56]} {[%emt 00:00:07]} Kf8
{[%clk 00:12:07]} {[%emt 00:00:11]} 22. Rcd1 {[%clk 00:12:59]} {[%emt
00:00:03]} Ke7 {[%clk 00:12:08]} {[%emt 00:00:04]} 23. f4 {[%clk 00:12:42]}
{[%emt 00:00:20]} f5 {[%clk 00:12:02]} {[%emt 00:00:12]} 24. h3 {[%clk
00:12:36]} {[%emt 00:00:12]} h5 {[%clk 00:12:00]} {[%emt 00:00:06]} 25. e4
{[%clk 00:12:27]} {[%emt 00:00:13]} b6 {[%clk 00:10:11]} {[%emt 00:01:55]} 26.
e5 {[%clk 00:12:11]} {[%emt 00:00:20]} d5 {[%clk 00:09:57]} {[%emt 00:00:20]}
27. cxd5 {[%clk 00:12:13]} {[%emt 00:00:03]} exd5 {[%clk 00:10:01]} {[%emt
00:00:02]} 28. Bxd5 {[%clk 00:12:01]} {[%emt 00:00:16]} Be6 {[%clk 00:09:57]}
{[%emt 00:00:09]} 29. Bxe6 {[%clk 00:11:43]} {[%emt 00:00:23]} Rxd2 {[%clk
00:10:01]} {[%emt 00:00:02]} 30. Rxd2 {[%clk 00:11:46]} {[%emt 00:00:02]} Kxe6
{[%clk 00:10:04]} {[%emt 00:00:02]} 31. Rd8 {[%clk 00:11:49]} {[%emt 00:00:02]}
Ke7 {[%clk 00:09:50]} {[%emt 00:00:19]} 32. Rxe8+ {[%clk 00:11:49]} {[%emt
00:00:05]} Kxe8 {[%clk 00:09:53]} {[%emt 00:00:02]} 33. Nc7+ {[%clk 00:11:52]}
{[%emt 00:00:03]} 1-0

[Event "13 ème Rapide Isle 2019"]
[Site "Isle, France"]
[Date "2019.09.22"]
[Round "1.3"]
[White "Lavaud, Clement"]
[Black "Saada, Julien"]
[Result "0-1"]
[TimeControl "15'+5''"]
[WhiteElo "1690"]
[BlackElo "2258"]

1. e4 {[%clk 00:15:07]} {[%emt 00:00:02]} c6 {[%clk 00:15:08]} {[%emt
00:00:02]} 2. d4 {[%clk 00:14:49]} {[%emt 00:00:24]} d5 {[%clk 00:15:11]}
{[%emt 00:00:02]} 3. e5 {[%clk 00:14:32]} {[%emt 00:00:23]} Bf5 {[%clk
00:15:14]} {[%emt 00:00:02]} 4. Bd3 {[%clk 00:14:27]} {[%emt 00:00:10]} Bxd3
{[%clk 00:15:16]} {[%emt 00:00:03]} 5. Qxd3 {[%clk 00:14:29]} {[%emt 00:00:03]}
e6 {[%clk 00:15:19]} {[%emt 00:00:02]} 6. Nf3 {[%clk 00:14:27]} {[%emt
00:00:08]} Qa5+ {[%clk 00:15:21]} {[%emt 00:00:02]} 7. Bd2 {[%clk 00:14:23]}
{[%emt 00:00:34]} Qa6 {[%clk 00:15:24]} 8. Qxa6 {[%clk 00:14:22]} Nxa6 {[%clk
00:15:27]} 9. a3 {[%clk 00:14:11]} c5 {[%clk 00:15:25]} {[%emt 00:00:06]} 10.
dxc5 {[%clk 00:13:40]} {[%emt 00:00:37]} Bxc5 {[%clk 00:15:09]} {[%emt
00:00:20]} 11. c3 {[%clk 00:13:41]} {[%emt 00:00:04]} Ne7 {[%clk 00:15:05]}
{[%emt 00:00:08]} 12. Nd4 {[%clk 00:13:42]} {[%emt 00:12:17]} Bxd4 {[%clk
00:14:28]} 13. cxd4 {[%clk 00:13:44]} Nf5 {[%clk 00:14:26]} 14. Bc3 {[%clk
00:13:24]} h5 {[%clk 00:14:20]} 15. Nd2 {[%clk 00:13:03]} Nb8 {[%clk 00:14:09]}
16. Nb3 {[%clk 00:12:01]} Nc6 {[%clk 00:14:06]} 17. O-O-O {[%clk 00:11:51]} Rc8
{[%clk 00:14:05]} 18. Kb1 {[%clk 00:11:52]} b6 {[%clk 00:14:04]} 19. h3 {[%clk
00:11:44]} h4 {[%clk 00:13:43]} 20. Nc1 {[%clk 00:10:38]} a5 {[%clk 00:13:07]}
21. Ne2 {[%clk 00:10:07]} b5 {[%clk 00:13:05]} 22. Rc1 {[%clk 00:09:37]} Kd7
{[%clk 00:13:07]} 23. g3 {[%clk 00:08:05]} hxg3 {[%clk 00:12:18]} 24. fxg3
{[%clk 00:08:06]} b4 {[%clk 00:12:15]} 25. g4 {[%clk 00:07:38]} Ne3 {[%clk
00:11:22]} 26. axb4 {[%clk 00:06:49]} {[%emt 00:00:44]} axb4 {[%clk 00:11:25]}
{[%emt 00:00:02]} 27. Bd2 {[%clk 00:06:49]} {[%emt 00:00:05]} Nc4 {[%clk
00:11:23]} {[%emt 00:00:06]} 28. Kc2 {[%clk 00:06:46]} {[%emt 00:00:07]} b3+
{[%clk 00:10:29]} {[%emt 00:01:00]} 29. Kc3 {[%clk 00:05:29]} {[%emt 00:01:22]}
N6a5 {[%emt 00:01:00]} 30. Ra1 {[%clk 00:04:48]} Nxe5+ {[%clk 00:10:01]} {[%emt
00:00:23]} 31. Kb4 {[%clk 00:04:51]} {[%emt 00:00:03]} Nec6+ {[%clk 00:09:16]}
{[%emt 00:00:50]} 32. Ka4 {[%clk 00:04:16]} {[%emt 00:00:41]} Ra8 {[%clk
00:09:12]} {[%emt 00:00:08]} 33. Bxa5 {[%emt 00:00:20]} Rhb8 {[%clk 00:09:02]}
{[%emt 00:00:12]} 34. Rac1 {[%clk 00:03:01]} {[%emt 00:01:08]} Rxa5# {[%clk
00:09:04]} {[%emt 00:00:03]} 0-1

[Event "13 ème Rapide Isle 2019"]
[Site "Isle, France"]
[Date "2019.09.22"]
[Round "1.4"]
[White "Saucey, Michel"]
[Black "Coussy, Tyffanie"]
[Result "1-0"]
[TimeControl "15'+5''"]
[WhiteElo "2243"]
[BlackElo "1628"]

1. d4 {[%clk 00:15:09]} d5 {[%clk 00:15:09]} {[%emt 00:00:01]} 2. Nf3 {[%clk
00:15:09]} {[%emt 00:00:05]} Bf5 {[%clk 00:15:09]} {[%emt 00:00:05]} 3. c4
{[%clk 00:15:07]} {[%emt 00:00:06]} e6 {[%clk 00:15:12]} {[%emt 00:00:03]} 4.
Nc3 {[%clk 00:15:06]} {[%emt 00:00:06]} Nf6 {[%clk 00:15:14]} {[%emt 00:00:03]}
5. Qb3 {[%clk 00:14:14]} {[%emt 00:00:56]} b6 {[%clk 00:14:27]} {[%emt
00:00:53]} 6. cxd5 {[%clk 00:14:03]} {[%emt 00:00:15]} Nxd5 {[%clk 00:14:10]}
{[%emt 00:00:22]} 7. e4 {[%clk 00:13:54]} {[%emt 00:00:14]} Nxc3 {[%clk
00:13:58]} {[%emt 00:12:21]} 8. exf5 {[%clk 00:13:56]} Nd5 {[%clk 00:13:36]} 9.
Bd2 {[%clk 00:12:47]} Be7 {[%clk 00:12:36]} 10. fxe6 {[%clk 00:11:42]} fxe6
{[%clk 00:12:39]} 11. Bc4 {[%clk 00:11:34]} O-O {[%clk 00:11:46]} 12. O-O
{[%clk 00:11:35]} Bf6 {[%clk 00:10:41]} 13. Rae1 {[%clk 00:11:23]} Qd7 {[%clk
00:09:24]} 14. Rxe6 {[%clk 00:11:08]} c6 {[%clk 00:08:53]} 15. Rfe1 {[%clk
00:10:19]} Kh8 {[%clk 00:07:24]} 16. h3 {[%clk 00:06:06]} {[%emt 00:03:43]} Ne7
{[%clk 00:04:24]} {[%emt 00:03:05]} 17. Bb4 {[%clk 00:05:25]} {[%emt 00:00:45]}
Re8 {[%clk 00:03:32]} {[%emt 00:00:58]} 18. Qe3 {[%clk 00:05:13]} {[%emt
00:00:16]} c5 {[%clk 00:02:43]} {[%emt 00:00:55]} 19. dxc5 {[%clk 00:04:34]}
{[%emt 00:00:43]} bxc5 {[%clk 00:01:58]} {[%emt 00:00:50]} 20. Bxc5 {[%clk
00:03:58]} {[%emt 00:00:41]} Nbc6 {[%clk 00:01:53]} {[%emt 00:00:10]} 21. Bb5
{[%clk 00:03:47]} {[%emt 00:00:15]} Rac8 {[%clk 00:01:42]} {[%emt 00:00:16]} 22.
b4 {[%clk 00:03:10]} {[%emt 00:00:42]} Rc7 {[%clk 00:00:40]} {[%emt 00:01:08]}
23. a4 {[%clk 00:02:57]} {[%emt 00:00:17]} Kg8 {[%clk 00:00:24]} {[%emt
00:00:22]} 24. Bd6 {[%clk 00:02:44]} {[%emt 00:00:17]} Rb7 {[%clk 00:00:13]}
{[%emt 00:00:17]} 25. Ba6 {[%clk 00:02:20]} {[%emt 00:00:29]} Rxb4 {[%clk
00:00:14]} {[%emt 00:00:04]} 26. Bxb4 {[%clk 00:02:20]} {[%emt 00:00:05]} Nxb4
{[%clk 00:00:18]} {[%emt 00:00:02]} 27. Bb5 {[%clk 00:02:18]} {[%emt 00:00:06]}
Qc7 {[%clk 00:00:11]} {[%emt 00:00:12]} 28. Bxe8 {[%clk 00:02:13]} {[%emt
00:00:03]} 1-0

[Event "13 ème Rapide Isle 2019"]
[Site "Isle, France"]
[Date "2019.09.22"]
[Round "2.1"]
[White "Chamaillard, Sylvain"]
[Black "Pottier, Simeon"]
[Result "1-0"]
[TimeControl "15'+5''"]
[WhiteElo "2033"]
[BlackElo "2205"]

1. e4 {[%clk 00:15:09]} c5 {[%clk 00:15:09]} {[%emt 00:00:02]} 2. Nf3 {[%clk
00:15:13]} {[%emt 00:00:01]} Nc6 {[%clk 00:15:14]} 3. Bb5 {[%clk 00:15:16]}
{[%emt 00:00:02]} g6 {[%clk 00:15:17]} {[%emt 00:00:01]} 4. c3 {[%clk
00:15:19]} {[%emt 00:00:03]} Bg7 {[%clk 00:15:21]} {[%emt 00:00:01]} 5. O-O
{[%clk 00:15:22]} {[%emt 00:00:02]} Nf6 {[%clk 00:15:25]} {[%emt 00:00:01]} 6.
Re1 {[%clk 00:15:25]} {[%emt 00:00:02]} O-O {[%clk 00:15:26]} {[%emt 00:00:03]}
7. d4 {[%clk 00:15:26]} {[%emt 00:00:04]} cxd4 {[%clk 00:15:30]} {[%emt
00:00:02]} 8. cxd4 {[%clk 00:15:26]} {[%emt 00:00:05]} d5 {[%clk 00:15:34]} 9.
e5 {[%clk 00:15:14]} {[%emt 00:00:17]} Ne4 {[%emt 00:00:50]} 10. Nc3 {[%clk
00:14:30]} Nxc3 {[%clk 00:15:41]} {[%emt 00:00:02]} 11. bxc3 {[%clk 00:14:34]}
Na5 {[%clk 00:15:46]} {[%emt 00:00:01]} 12. Ba3 {[%clk 00:13:58]} {[%emt
00:00:41]} Bf5 {[%clk 00:14:40]} {[%emt 00:01:10]} 13. e6 {[%clk 00:13:52]}
{[%emt 00:00:11]} Bxe6 {[%clk 00:10:59]} {[%emt 00:03:45]} 14. Ng5 {[%clk
00:13:47]} {[%emt 00:00:11]} a6 {[%clk 00:10:57]} {[%emt 00:00:07]} 15. Bd3
{[%clk 00:12:01]} {[%emt 00:01:51]} Qd7 {[%clk 00:10:16]} {[%emt 00:00:47]} 16.
Qe2 {[%clk 00:09:38]} {[%emt 00:02:28]} Rac8 {[%clk 00:10:15]} {[%emt
00:00:06]} 17. Rac1 {[%clk 00:09:32]} {[%emt 00:00:12]} Rc6 {[%clk 00:09:04]}
{[%emt 00:01:17]} 18. h4 {[%clk 00:08:06]} {[%emt 00:01:30]} Re8 {[%clk
00:07:32]} {[%emt 00:01:36]} 19. Qf3 {[%clk 00:07:50]} {[%emt 00:00:21]} Bf6
{[%clk 00:04:07]} {[%emt 00:03:31]} 20. Bb4 {[%clk 00:05:29]} {[%emt 00:02:26]}
Bg4 {[%clk 00:03:00]} {[%emt 00:01:11]} 21. Qf4 {[%clk 00:05:00]} {[%emt
00:00:35]} Nc4 {[%clk 00:02:44]} {[%emt 00:00:21]} 22. Bxc4 {[%clk 00:04:00]}
{[%emt 00:01:05]} dxc4 {[%clk 00:01:12]} {[%emt 00:01:37]} 23. d5 {[%clk
00:03:55]} {[%emt 00:00:10]} e5 {[%clk 00:00:26]} {[%emt 00:00:51]} 24. dxc6
{[%emt 00:00:21]} 1-0

[Event "13 ème Rapide Isle 2019"]
[Site "Isle, France"]
[Date "2019.09.22"]
[Round "2.2"]
[White "Rottat, Sebastien"]
[Black "Bedouin, Xavier"]
[Result "0-1"]
[TimeControl "15'+5''"]
[WhiteElo "1511"]
[BlackElo "2295"]

1. e4 {[%clk 00:15:08]} {[%emt 00:00:02]} Nf6 {[%clk 00:15:05]} {[%emt
00:00:05]} 2. Nc3 {[%clk 00:15:10]} {[%emt 00:00:03]} Nc6 {[%clk 00:14:57]}
{[%emt 00:00:13]} 3. Nf3 {[%clk 00:15:12]} {[%emt 00:00:03]} d5 {[%clk
00:14:51]} {[%emt 00:00:12]} 4. exd5 {[%clk 00:15:09]} {[%emt 00:00:08]} Nxd5
{[%clk 00:14:52]} {[%emt 00:00:04]} 5. d3 {[%clk 00:15:03]} {[%emt 00:00:11]}
Bg4 {[%clk 00:14:46]} {[%emt 00:00:11]} 6. Be2 {[%clk 00:15:06]} {[%emt
00:00:02]} e6 {[%clk 00:14:42]} {[%emt 00:00:10]} 7. O-O {[%clk 00:15:07]}
{[%emt 00:00:03]} Be7 {[%clk 00:14:39]} {[%emt 00:00:07]} 8. h3 {[%clk
00:14:49]} {[%emt 00:00:24]} Bh5 {[%clk 00:14:41]} {[%emt 00:00:03]} 9. Ne4
{[%clk 00:14:04]} {[%emt 00:00:50]} Qd7 {[%clk 00:13:39]} {[%emt 00:01:07]} 10.
Be3 {[%clk 00:13:43]} {[%emt 00:00:26]} f5 {[%clk 00:12:59]} {[%emt 00:00:45]}
11. Ng3 {[%clk 00:13:37]} {[%emt 00:00:10]} Bxf3 {[%clk 00:12:10]} {[%emt
00:00:54]} 12. Bxf3 {[%clk 00:13:34]} {[%emt 00:00:08]} O-O-O {[%clk 00:11:47]}
{[%emt 00:00:28]} 13. Ne2 {[%clk 00:13:29]} {[%emt 00:00:10]} g5 {[%clk
00:10:22]} {[%emt 00:01:29]} 14. g3 {[%clk 00:11:18]} {[%emt 00:02:16]} h5
{[%clk 00:10:21]} {[%emt 00:00:07]} 15. Qd2 {[%clk 00:11:10]} {[%emt 00:00:14]}
Rdg8 {[%clk 00:08:39]} {[%emt 00:01:46]} 16. Kh2 {[%clk 00:10:57]} {[%emt
00:00:17]} g4 {[%clk 00:07:55]} {[%emt 00:00:49]} 17. Bg2 {[%clk 00:10:36]}
{[%emt 00:00:26]} h4 {[%clk 00:07:56]} {[%emt 00:00:05]} 18. gxh4 {[%clk
00:09:03]} {[%emt 00:01:38]} Rxh4 {[%clk 00:07:36]} {[%emt 00:00:24]} 19. Rh1
{[%clk 00:08:41]} {[%emt 00:00:26]} Bd6+ {[%clk 00:07:22]} {[%emt 00:00:20]} 20.
Kg1 {[%clk 00:08:43]} {[%emt 00:00:03]} gxh3 {[%clk 00:06:55]} {[%emt
00:00:33]} 21. Ng3 {[%clk 00:08:22]} {[%emt 00:00:26]} Bxg3 {[%clk 00:06:46]}
{[%emt 00:00:14]} 22. fxg3 {[%clk 00:08:25]} {[%emt 00:00:02]} Rxg3 {[%clk
00:06:48]} {[%emt 00:00:04]} 23. Rh2 {[%clk 00:06:50]} {[%emt 00:01:40]} Nxe3
{[%clk 00:06:47]} {[%emt 00:00:06]} 24. Kf2 {[%clk 00:05:44]} {[%emt 00:01:10]}
Rxg2+ {[%clk 00:06:37]} {[%emt 00:00:15]} 25. Rxg2 {[%clk 00:05:43]} {[%emt
00:00:06]} Nxg2 {[%clk 00:06:36]} {[%emt 00:00:05]} 26. Qg5 {[%clk 00:05:11]}
{[%emt 00:00:37]} Qd4+ {[%clk 00:06:32]} {[%emt 00:00:09]} 27. Ke2 {[%clk
00:04:46]} {[%emt 00:00:30]} Qg4+ {[%clk 00:06:02]} {[%emt 00:00:36]} 28. Qxg4
{[%clk 00:04:46]} {[%emt 00:00:05]} fxg4 {[%clk 00:06:01]} {[%emt 00:00:05]} 29.
Kf2 {[%clk 00:04:43]} {[%emt 00:00:08]} Nd4 {[%clk 00:05:58]} {[%emt 00:00:09]}
30. c3 {[%clk 00:04:41]} {[%emt 00:00:07]} Nf5 {[%clk 00:05:58]} {[%emt
00:00:04]} 31. Rh1 {[%clk 00:04:36]} {[%emt 00:00:10]} Nf4 {[%clk 00:05:55]}
{[%emt 00:00:09]} 32. d4 {[%clk 00:04:33]} {[%emt 00:00:09]} g3+ {[%clk
00:05:50]} {[%emt 00:00:09]} 33. Kf3 {[%clk 00:03:57]} {[%emt 00:00:41]} g2
{[%clk 00:05:35]} {[%emt 00:00:20]} 0-1

[Event "13 ème Rapide Isle 2019"]
[Site "Isle, France"]
[Date "2019.09.22"]
[Round "2.3"]
[White "Saada, Julien"]
[Black "Bolis, Michel"]
[Result "1-0"]
[TimeControl "15'+5''"]
[WhiteElo "2258"]
[BlackElo "1519"]

1. d4 {[%clk 00:15:07]} {[%emt 00:00:03]} Nf6 {[%clk 00:15:06]} {[%emt
00:00:04]} 2. Bg5 {[%clk 00:15:09]} {[%emt 00:00:02]} d6 {[%clk 00:15:10]}
{[%emt 00:00:02]} 3. Bxf6 {[%clk 00:15:09]} {[%emt 00:00:05]} exf6 {[%clk
00:15:12]} {[%emt 00:00:03]} 4. e3 {[%clk 00:15:12]} {[%emt 00:00:03]} g6
{[%clk 00:15:14]} {[%emt 00:00:04]} 5. g3 {[%clk 00:15:14]} {[%emt 00:00:03]}
Bg7 {[%clk 00:15:18]} 6. Bg2 {[%clk 00:15:17]} O-O {[%clk 00:15:17]} {[%emt
00:00:04]} 7. Ne2 {[%clk 00:15:20]} {[%emt 00:00:05]} f5 {[%clk 00:15:15]}
{[%emt 00:00:08]} 8. O-O {[%clk 00:15:20]} {[%emt 00:00:05]} c5 {[%clk
00:15:16]} {[%emt 00:00:04]} 9. c3 {[%clk 00:15:20]} {[%emt 00:00:04]} Qb6
{[%clk 00:15:00]} {[%emt 00:00:21]} 10. Nd2 {[%clk 00:14:27]} {[%emt 00:00:57]}
Be6 {[%clk 00:14:20]} {[%emt 00:00:46]} 11. Qc2 {[%clk 00:13:40]} {[%emt
00:00:52]} Nd7 {[%clk 00:14:01]} {[%emt 00:00:23]} 12. d5 {[%clk 00:13:39]}
{[%emt 00:00:06]} Bxd5 {[%clk 00:13:37]} {[%emt 00:00:29]} 13. Bxd5 {[%clk
00:13:41]} {[%emt 00:00:03]} Nf6 {[%clk 00:13:28]} {[%emt 00:00:15]} 14. Bg2
{[%clk 00:13:33]} {[%emt 00:00:13]} d5 {[%clk 00:13:24]} {[%emt 00:00:09]} 15.
Rfd1 {[%clk 00:13:15]} {[%emt 00:00:23]} Ne4 {[%clk 00:13:18]} {[%emt
00:00:12]} 16. Nxe4 {[%clk 00:13:11]} {[%emt 00:00:09]} dxe4 {[%clk 00:13:21]}
{[%emt 00:00:02]} 17. Nf4 {[%clk 00:13:08]} {[%emt 00:00:07]} Rfd8 {[%clk
00:12:56]} {[%emt 00:00:30]} 18. Qb3 {[%clk 00:12:57]} {[%emt 00:00:16]} Qc7
{[%clk 00:12:14]} {[%emt 00:00:43]} 19. Bf1 {[%clk 00:12:39]} {[%emt 00:00:26]}
Rd6 {[%clk 00:12:04]} {[%emt 00:00:16]} 20. Rxd6 {[%clk 00:12:37]} {[%emt
00:00:07]} Qxd6 {[%clk 00:12:05]} {[%emt 00:00:04]} 21. Rd1 {[%clk 00:12:39]}
{[%emt 00:00:03]} Qe7 {[%clk 00:11:51]} {[%emt 00:00:20]} 22. Nd5 {[%clk
00:12:29]} {[%emt 00:00:14]} Qd6 {[%clk 00:11:21]} {[%emt 00:00:35]} 23. Qxb7
{[%clk 00:12:18]} {[%emt 00:00:17]} Qf8 {[%clk 00:10:50]} {[%emt 00:00:36]} 24.
Ne7+ {[%clk 00:12:15]} {[%emt 00:00:07]} Kh8 {[%clk 00:10:51]} {[%emt
00:00:02]} 25. Nc6 {[%clk 00:12:18]} {[%emt 00:00:06]} a5 {[%clk 00:10:38]}
{[%emt 00:00:14]} 26. Qxa8 {[%clk 00:12:19]} {[%emt 00:00:08]} Qxa8 {[%clk
00:10:38]} {[%emt 00:00:05]} 27. Rd8+ {[%clk 00:12:21]} {[%emt 00:00:03]} Qxd8
{[%emt 00:00:03]} 28. Nxd8 {[%emt 00:00:03]} Bf6 {[%clk 00:10:35]} {[%emt
00:00:02]} 29. Nxf7+ {[%clk 00:12:19]} {[%emt 00:00:07]} Kg7 {[%emt 00:00:01]}
30. Bc4 {[%emt 00:00:02]} Be7 {[%clk 00:10:17]} {[%emt 00:00:17]} 31. a4 {[%clk
00:12:17]} {[%emt 00:00:10]} Kf6 {[%emt 00:00:02]} 32. Kf1 {[%emt 00:00:10]} h5
{[%clk 00:10:08]} {[%emt 00:00:02]} 33. Ke2 {[%clk 00:12:16]} {[%emt 00:00:06]}
g5 {[%clk 00:10:10]} {[%emt 00:00:03]} 34. f3 {[%clk 00:12:03]} {[%emt
00:00:18]} exf3+ {[%clk 00:10:05]} {[%emt 00:00:10]} 35. Kxf3 {[%clk 00:12:05]}
{[%emt 00:00:02]} Kg6 {[%clk 00:09:56]} {[%emt 00:00:14]} 36. Ne5+ {[%clk
00:12:06]} {[%emt 00:00:04]} Kf6 {[%clk 00:09:50]} {[%emt 00:00:11]} 37. Nc6
{[%clk 00:12:07]} {[%emt 00:00:04]} Bd6 {[%clk 00:09:47]} {[%emt 00:00:09]} 38.
Nxa5 {[%clk 00:12:08]} {[%emt 00:00:04]} g4+ {[%clk 00:09:50]} {[%emt
00:00:02]} 1-0